[Event "Coimbra Queima Fitas Open 2024"]
[Site "Coimbra"]
[Date "2024.04.27"]
[Round "4.13"]
[White "Vasconcelos, Paulo Jorge Lopes De"]
[Black "Ermida, Ricardo Carreira Das"]
[Result "1/2-1/2"]
[ECO "B12"]
[WhiteElo "2093"]
[BlackElo "1825"]
[Annotator "TA"]
[PlyCount "33"]
[EventDate "2024.04.23"]
[EventType "swiss"]
[EventCountry "POR"]
[SourceTitle "playchess.com"]
[Source "ChessBase"]
[SourceQuality "1"]
[TimeControl "5400+30"]

{[%evp 9,33,18,14,13,18,20,20,8,16,20,20,17,58,55,67,12,8,16,50,0,0,0,3,0,0,0]} 1. e4 {[%emt 0:00:03]} c6 {[%emt 0:00:44]} 2. d4 {[%emt 0:00:06]} d5 {[%emt 0:00:05]} 3. e5 {[%emt 0:00:05]} Bf5 {[%emt 0:00:09]} 4. h4 {[%emt 0:00:05]} h5 {[%emt 0:00:19]} 5. Bd3 {[%emt 0:00:04]} Bxd3 {[%emt 0:00:08]} 6. Qxd3 {[%emt 0:00:04][%cal Oe5e6]} Qa5+ {[%emt 0:00:27]} 7. Bd2 {[%emt 0:04:36]} Qa6 {[%emt 0:00:51] [#]} 8. e6 $1 {[%emt 0:00:16] Threatens to win with exf7+.} Qxd3 {[%emt 0:00:07]} 9. exf7+ {[%emt 0:00:06]} Kxf7 {[%emt 0:00:08]} 10. cxd3 {[%emt 0:00:05]} Nf6 {[%emt 0:06:02]} 11. Nf3 {[%emt 0:00:39]} Nbd7 {[%emt 0:01:58]} 12. Nc3 {[%emt 0:11:52] White is more active.} ({Better is} 12. O-O $14) 12... Re8 $11 {[%emt 0:05:43]} 13. Ng5+ {[%emt 0:01:39]} Kg8 $1 {[%emt 0:05:16]} 14. Ne6 {[%emt 0:17:38]} (14. O-O-O $14) 14... Kf7 {[%emt 0:00:30] The position is equal.} 15. Ng5+ {[%emt 0:00:26]} Kg8 $1 {[%emt 0:00:09]} 16. Ne6 {[%emt 0:03:29]} Kf7 {[%emt 0:00:07]} 17. Ng5+ {[%emt 0:00:07] Weighted Error Value: White=0.15 (very precise) /Black=0.03 (flawless) .  Mistake:       	White=2     	---        Inaccurate:     	---       	Black=1      OK:         	White=6     	Black=3      Best:        	---       	Black=3      Strong:       	---       	Black=2} 1/2-1/2

[Event "Coimbra Queima Fitas Open 2024"]
[Site "Coimbra"]
[Date "2024.04.27"]
[Round "4.14"]
[White "Ryabukhin, Roman"]
[Black "Figueiredo, Mario Jose Da Rocha"]
[Result "1-0"]
[ECO "A42"]
[WhiteElo "2047"]
[BlackElo "1874"]
[Annotator "TA"]
[PlyCount "75"]
[EventDate "2024.04.23"]
[EventType "swiss"]
[EventCountry "POR"]
[SourceTitle "playchess.com"]
[Source "ChessBase"]
[SourceQuality "1"]
[TimeControl "5400+30"]

{[%evp 12,75,59,41,44,0,0,-17,0,0,0,0,0,0,0,-8,64,62,67,14,75,58,71,72,68,83,59,35,52,16,67,60,81,42,91,90,139,85,147,106,120,71,171,27,151,77,279,245,311,311,429,431,530,452,1058,1063,1302,1291,1848,1871,29970,29971,6423,5982,2373,2566]} 1. e4 {[%emt 0:00:02]} d6 {[%emt 0:01:46]} 2. d4 {[%emt 0:00:21][%cal Bd2d4,Bd4d5][%mdl 32]} g6 {[%emt 0:00:06]} 3. c4 {[%emt 0:00:13]} Bg7 {[%emt 0:00:08]} 4. Nc3 {[%emt 0:00:03]} Nc6 {[%emt 0:00:56]} 5. Be3 {[%emt 0:05:54]} e5 {[%emt 0:02:10]} 6. d5 {[%emt 0:01:58]} Nce7 {[%emt 0:00:27]} 7. f3 {[%emt 0:00:08]} f5 {[%emt 0:01:47]} 8. b4 {[%emt 0:04:25]} a5 {[%emt 0:03:55]} 9. a3 {[%emt 0:00:36]} axb4 {[%emt 0:03:20] The position is equal.} 10. axb4 {[%emt 0:00:20]} Rxa1 {[%emt 0:00:03]} 11. Qxa1 {[%emt 0:00:02]} Nf6 {[%emt 0:01:52]} 12. Bd3 {[%emt 0:06:40]} O-O {[%emt 0:02:13]} 13. Nge2 {[%emt 0:01:26]} f4 {[%emt 0:02:05]} (13... fxe4 $11 14. Nxe4 Nxe4 15. Bxe4 Nf5) 14. Bf2 $14 {[%emt 0:10:42]} g5 {[%emt 0:01:12]} 15. Kd2 {[%emt 0:01:38]} (15. h3 $14) 15... h5 {[%emt 0:08:27]} (15... g4 $1 $11 {remains equal.}) 16. h3 {[%emt 0:03:44]} Ng6 {[%emt 0:02:25]} 17. Nc1 {[%emt 0:00:41]} g4 {[%emt 0:01:27]} 18. hxg4 {[%emt 0:00:18]} hxg4 {[%emt 0:00:07][%cal Bh5g4,Bg4g3][%mdl 32]} 19. Nb3 {[%emt 0:00:21]} g3 $1 {[%emt 0:05:04]} 20. Ba7 {[%emt 0:02:54]} (20. Be1 $5) 20... Ne8 {[%emt 0:13:34]} ({Better is} 20... Ng4 $11) 21. c5 $36 {[%emt 0:03:27][%mdl 2048] White fights for an advantage. White is more active.} Nh4 {[%emt 0:04:48]} 22. Bf1 {[%emt 0:00:31]} Qg5 {[%emt 0:03:55]} (22... Bg4 $14 {is superior.}) 23. Rg1 $16 {[%emt 0:03:33]} Bh6 {[%emt 0:03:41]} (23... Nf6 $142) 24. Kd3 {[%emt 0:04:35]} ({White should try} 24. Kc2) 24... Nf6 {[%emt 0:08:16]} (24... Rf7 $142) 25. Nd2 {[%emt 0:05:18]} Bd7 {[%emt 0:09:39]} 26. Qa2 {[%emt 0:01:22]} (26. cxd6 $142 cxd6 27. Qa5) 26... Kg7 {[%emt 0:01:44]} (26... Ra8 $16 {might work better.}) 27. Qa5 {[%emt 0:00:01]} ({White should play} 27. cxd6 $18 cxd6 28. Nc4) 27... Rc8 {[%emt 0:04:38]} (27... dxc5 $1 $11 28. bxc5 c6) 28. Nc4 {[%emt 0:04:29]} (28. cxd6 $142 cxd6 29. Qb6) 28... Nf5 $2 {[%emt 0:03:21] [#] This move loses the game for Black.} 29. exf5 $18 {[%emt 0:01:00]} Bxf5+ {[%emt 0:01:45]} 30. Kd2 {[%emt 0:03:32]} e4 {[%emt 0:03:44][%cal Be5e4,Be4e3][%mdl 32]} 31. cxd6 {[%emt 0:00:25]} e3+ {[%emt 0:02:58]} 32. Ke1 {[%emt 0:02:45]} cxd6 {[%emt 0:00:48]} (32... b6 $142 33. Qa1 Qh5 34. dxc7 Rxc7) 33. Bd4 {[%emt 0:00:25]} Kg6 {[%emt 0:00:12]} 34. Nxd6 {[%emt 0:01:19]} Rf8 {[%emt 0:02:46]} 35. Qb5 {[%emt 0:01:04]} Bc2 {[%emt 0:01:48]} 36. Bd3+ {[%emt 0:00:14]} Bxd3 {[%emt 0:00:06]} 37. Qxd3+ {[%emt 0:00:01]} Kg7 {[%emt 0:00:09]} 38. Nce4 {Weighted Error Value: White=0.35/Black=0.71.  Loses game:     	---       	Black=1      Mistake:       	White=5     	Black=9      Inaccurate:     	White=3     	Black=1      OK:         	White=7     	Black=5      Best:        	White=3     	Black=1      Strong:       	---       	Black=1} 1-0

[Event "Coimbra Queima Fitas Open 2024"]
[Site "Coimbra"]
[Date "2024.04.27"]
[Round "4.15"]
[White "Pereira, Sergio Daniel Costa"]
[Black "Caturra, Rafael Dias"]
[Result "1/2-1/2"]
[ECO "C00"]
[WhiteElo "2037"]
[BlackElo "1737"]
[Annotator "NA RC"]
[PlyCount "109"]
[EventDate "2024.04.23"]
[EventType "swiss"]
[EventCountry "POR"]
[SourceTitle "playchess.com"]
[Source "ChessBase"]
[SourceQuality "1"]
[TimeControl "5400+30"]

1. e4 {[%emt 0:00:02]} e6 {[%emt 0:01:00]} 2. d4 {[%emt 0:00:10]} d5 {[%emt 0:00:06]} 3. Bd3 {[%emt 0:00:21]} dxe4 {[%emt 0:00:12]} 4. Bxe4 {[%emt 0:00:13]} Nf6 {[%emt 0:00:06]} 5. Bf3 {[%emt 0:00:06]} c5 {[%emt 0:00:06]} 6. Ne2 {[%emt 0:00:15]} Nc6 {[%emt 0:00:11] C01: French: Exchange Variation.} 7. Be3 {[%emt 0:00:10]} e5 {[%emt 0:00:09]} 8. Bxc6+ {[%emt 0:03:22]} bxc6 {[%emt 0:00:27]} 9. dxe5 {[%emt 0:06:52]} Qxd1+ {[%emt 0:00:30]} 10. Kxd1 {[%emt 0:00:30]} Ng4 {[%emt 0:00:00]} 11. Nd2 {[%emt 0:01:28]} Be7 {[%emt 0:00:19]} 12. h3 {[%emt 0:00:30]} Nxe5 {[%emt 0:00:30]} 13. f4 {[%emt 0:00:30]} Ng6 {[%emt 0:06:29]} 14. g3 {[%emt 0:11:04]} Be6 {[%emt 0:04:56]} 15. Ke1 {[%emt 0:06:17]} Rb8 {[%emt 0:09:59]} 16. b3 {[%emt 0:05:21]} O-O {[%emt 0:06:34]} 17. Kf2 {[%emt 0:08:43]} Rfe8 {[%emt 0:07:57]} 18. c4 {[%emt 0:02:38]} f5 {[%emt 0:09:20]} (18... Rbd8 $11) 19. Rad1 {[%emt 0:02:37]} h6 {[%emt 0:09:24]} 20. Nc3 {[%emt 0:05:25]} Nf8 {[%emt 0:09:59]} 21. Nf3 {[%emt 0:02:44]} Nd7 {[%emt 0:03:27]} 22. Rd3 {[%emt 0:06:01]} Kh7 {[%emt 0:04:53]} 23. Rhd1 {[%emt 0:01:28]} Nf6 {[%emt 0:00:57]} 24. Ne5 {[%emt 0:10:20]} Rb6 {[%emt 0:03:44]} 25. Kf3 {[%emt 0:01:04]} Rc8 {[%emt 0:04:59]} 26. Na4 {[%emt 0:01:56]} Ra6 {[%emt 0:03:50]} 27. Bxc5 {[%emt 0:03:10]} Rxa4 {[%emt 0:01:27]} 28. Bxe7 {[%emt 0:00:30]} Rxa2 {[%emt 0:00:06]} 29. Bxf6 {[%emt 0:00:21]} gxf6 {[%emt 0:00:05]} 30. Nd7 {[%emt 0:00:11]} Bxd7 {[%emt 0:02:00]} 31. Rxd7+ {[%emt 0:00:08]} Kg6 {[%emt 0:00:43]} 32. Re1 $11 {[%emt 0:02:21]} Rb8 {[%emt 0:00:36]} 33. Re3 {[%emt 0:00:19]} Ra3 {[%emt 0:00:34]} 34. Rdd3 {[%emt 0:01:33]} a5 {[%emt 0:00:31]} 35. c5 {[%emt 0:03:08]} Rb5 {[%emt 0:01:01]} 36. Rc3 {[%emt 0:00:30]} Rb4 {[%emt 0:02:21]} 37. g4 {[%emt 0:01:41]} a4 {[%emt 0:01:50]} 38. bxa4 {[%emt 0:03:17]} Raxa4 {[%emt 0:00:16]} 39. Re6 {[%emt 0:01:00]} Rxf4+ {[%emt 0:00:16]} 40. Kg3 {[%emt 0:00:09]} fxg4 {[%emt 0:00:39]} 41. Rxc6 {[%emt 0:00:17]} gxh3 {[%emt 0:00:32]} 42. Rc8 {[%emt 0:00:59]} Rac4 {[%emt 0:01:21]} 43. Rxc4 {[%emt 0:00:26]} Rxc4 {[%emt 0:00:05]} 44. Kxh3 {[%emt 0:00:06]} f5 {[%emt 0:00:42]} 45. c6 {[%emt 0:00:10]} h5 {[%emt 0:01:10]} 46. c7 {[%emt 0:00:14]} Kg7 {[%emt 0:00:04]} 47. Kg3 {[%emt 0:00:25]} Rc3+ {[%emt 0:00:36]} 48. Kf4 {[%emt 0:01:32]} h4 {[%emt 0:02:35]} 49. Kxf5 {[%emt 0:02:49]} h3 {[%emt 0:00:14]} 50. Rd8 {[%emt 0:00:07]} h2 {[%emt 0:01:14]} 51. Rd1 {[%emt 0:00:12]} Rxc7 {[%emt 0:00:18]} 52. Rh1 {[%emt 0:00:15]} Rc2 {[%emt 0:00:21]} 53. Kg4 Kg6 54. Kh3 Kg5 55. Rxh2 1/2-1/2

[Event "Coimbra Queima Fitas Open 2024"]
[Site "Coimbra"]
[Date "2024.04.27"]
[Round "4.16"]
[White "Guerra, Jose Goulart De Varg"]
[Black "Iglesias Ferreira, Andres Agustin"]
[Result "1-0"]
[ECO "D48"]
[WhiteElo "1813"]
[BlackElo "2261"]
[Annotator "TA"]
[PlyCount "120"]
[EventDate "2024.04.23"]
[EventType "swiss"]
[EventCountry "POR"]
[SourceTitle "playchess.com"]
[Source "ChessBase"]
[SourceQuality "1"]
[TimeControl "5400+30"]

{[%evp 24,120,-16,-20,-25,-12,-20,-129,-10,-15,0,-18,-11,-34,8,13,8,16,58,0,0,5,6,0,38,0,0,0,31,0,0,-70,-61,-56,-13,-102,-87,-88,281,287,286,285,325,360,348,361,447,426,532,452,570,562,663,661,647,609,622,612,694,687,756,444,697,685,649,443,458,470,534,562,577,577,566,561,524,490,376,0,547,539,2580,1566,2228,2210,2208,2030,2030,2031,1388,1966,2054,1960,29970,29976,29981,29982,29982,29983,29975]} 1. Nf3 Nf6 2. c4 e6 3. Nc3 d5 4. d4 Nbd7 5. e3 c6 {[%cal Bc7c6,Bc6c5][%mdl 32]} 6. Bd3 dxc4 7. Bxc4 b5 8. Bd3 a6 9. O-O c5 10. Qe2 Bb7 11. Rd1 Qb8 12. e4 cxd4 13. Nxd4 Bd6 14. h3 O-O 15. Nb3 {[#]} (15. a3 $11 {keeps the balance.}) 15... Qc7 (15... b4 $1 $17 {[%cal Rb4c3]} 16. Nb1 a5) 16. Be3 $11 Rac8 17. Rac1 {[%cal Oc3b5]} Qb8 18. f3 Ne5 19. Qf2 Rfd8 {Strongly threatening ...Nxd3.} 20. Bf1 Ng6 21. Ne2 ({White should play} 21. Ba7 $14 Qa8 22. Bb6) 21... Rxc1 22. Rxc1 Ne5 23. Ned4 Ned7 24. Nc6 Bxc6 25. Rxc6 Bh2+ 26. Kh1 Nh5 {White must now prevent ...Ne5.} 27. g4 (27. Rxa6 $11 Ne5 (27... Ng3+ 28. Kxh2 Nxf1+ 29. Kg1 $17) 28. Ba7 (28. Kxh2 $2 Nxf3+ 29. Kh1 Qh2#) (28. Rb6 $2 Qc7 $19)) 27... Ng3+ $15 28. Kg2 $1 Ne5 {Excellent horsemanship.} 29. Ba7 (29. Rb6 $11 Qc7 30. Rxe6 (30. Kxh2 $2 {too greedy.} Nxf1+ 31. Kg2 Nxe3+ 32. Qxe3 Nc4 $19) (30. Bxb5 $2 axb5 31. Nc5 Qxb6 $19) 30... fxe6 31. Bb6) 29... Qa8 30. Rc2 Rd1 $2 {[%mdl 8192] [#]} (30... Nxf1 $17 {keeps the pressure on.} 31. Kxf1 Bf4) 31. Be2 $18 Nxe2 32. Qxe2 Rd7 33. Be3 {[%cal Ba7e3,Be3f4,Bf4g3][%mdl 32] Prevents Bf4} Qb8 34. f4 {[%cal Bf3f4,Bf4g5][%mdl 32]} ({Don't take} 34. Kxh2 Nxg4+ 35. Kh1 Nxe3 36. Qxe3 h5) 34... Nc4 35. Kxh2 g5 36. e5 {Threatens to win with Nc5.} Qd8 37. fxg5 Rd5 {[%cal Bd7d5,Bd5d3,Bd3e3][%mdl 32]} 38. Bf4 Qb6 39. Bg3 Qd8 40. h4 Rd3 41. Nc5 Re3 42. Qf2 {[%cal Oc2c4]} Qd1 {[#]} (42... Qd5 $142 43. Rxc4 (43. Nxa6 Rf3 $18) 43... Rf3) 43. Rxc4 $1 {[%cal Bc2c4,Bc4f4,Bf4f2][%mdl 32]} Re2 44. Rf4 {[%cal Of4f7] And now Rxf7! would win.} Rxf2+ 45. Rxf2 Qxg4 46. Nd7 {Intending Nf6+ and mate.} Qd1 47. Nf6+ Kg7 48. a3 Qd4 49. Kh3 Qd1 50. Kh2 {Dodges Qh1+} (50. Ne8+ $142 Kf8 51. Nd6) 50... Qd4 $1 51. Ne8+ Kg6 52. Rf6+ Kh5 53. Ng7+ Kg4 54. Rf4+ Qxf4 55. Bxf4 Kxf4 {KN-KP} 56. Kh3 Kxe5 57. Kg4 Kd4 {[#]} 58. Nxe6+ $1 {[%mdl 512] White mates.} fxe6 (58... Kc4 59. Nd8) 59. h5 {[%cal Bh4h5,Bh5h6][%mdl 32]} Ke5 60. h6 Kd5 {Weighted Error Value: White=0.26 (precise) /Black=0.45.  Loses game:     	---       	Black=1      Mistake:       	White=5     	Black=1      Inaccurate:     	White=2     	Black=6      OK:         	White=15    	Black=8      Best:        	---       	Black=1      Strong:       	White=1     	Black=1} 1-0

[Event "Coimbra Queima Fitas Open 2024"]
[Site "Coimbra"]
[Date "2024.04.27"]
[Round "4.17"]
[White "Paiva, Manuel Maria Fonseca"]
[Black "Farias, David Nuno Moita Est"]
[Result "0-1"]
[ECO "B23"]
[WhiteElo "1807"]
[BlackElo "2194"]
[Annotator "NA RC"]
[PlyCount "76"]
[EventDate "2024.04.23"]
[EventType "swiss"]
[EventCountry "POR"]
[SourceTitle "playchess.com"]
[Source "ChessBase"]
[SourceQuality "1"]
[TimeControl "5400+30"]

{[%evp 8,50,25,3,32767,-1,0,32767,3,0,-12,32767,10,0,22,21,22,26,29,20,24,20,30,64,93,33,15,32767,32767,32767,32767,32767,276,142,116,32767,32767,136,177,202,218,32767,32767,195,239]} 1. e4 {[%emt 0:00:06]} c5 {[%emt 0:00:38]} 2. Nc3 {[%emt 0:00:05]} d6 {[%emt 0:00:18]} 3. f4 {[%emt 0:00:06]} g6 {[%emt 0:00:40]} 4. Nf3 {[%emt 0:00:06]} Bg7 {[%emt 0:00:42]} 5. Bc4 {[%emt 0:00:07]} Nc6 {[%emt 0:01:04]} 6. O-O {[%emt 0:00:44]} e6 {[%emt 0:00:51]} 7. d4 {[%emt 0:01:57] B23: Closed Sicilian: Lines without g3.} cxd4 {[%emt 0:02:57]} 8. Nb5 {[%emt 0:00:08]} Nge7 {[%emt 0:09:27]} 9. Bb3 {[%emt 0:00:13]} a6 {[%emt 0:10:39]} 10. Nbxd4 {[%emt 0:00:49]} O-O {[%emt 0:00:42]} 11. c3 {[%emt 0:03:22]} Na5 {[%emt 0:06:47]} 12. Bc2 {[%emt 0:08:57]} e5 {[%emt 0:08:22]} 13. Ne2 {[%emt 0:12:31]} Qb6+ {[%emt 0:12:56]} 14. Kh1 {[%emt 0:00:47]} f6 {[%emt 0:04:58]} 15. Ng3 {[%emt 0:04:12]} Be6 {[%emt 0:06:37]} ({Black should try} 15... Qc7 $1 $14) 16. b3 {[%emt 0:14:31]} (16. f5 $16 Bf7 17. Ng5) 16... Qc7 {[%emt 0:04:37]} 17. f5 {[%emt 0:16:35]} gxf5 {[%emt 0:04:56]} 18. exf5 {[%emt 0:02:02]} Bf7 {[%emt 0:00:05]} 19. Ng5 {[%emt 0:03:46]} Rac8 {[%emt 0:12:34]} 20. Nxf7 {[%emt 0:00:58]} ({White should play} 20. Qg4 $18 Kh8 21. Bd2) 20... Rxf7 {[%emt 0:00:38]} 21. Rf3 {[%emt 0:08:44]} Kh8 {[%emt 0:05:37]} 22. Ba3 {[%emt 0:02:41]} Rd8 {[%emt 0:01:32]} (22... d5 $16) 23. Ne4 {[%emt 0:00:49]} Nc8 {[%emt 0:02:06]} 24. Rh3 {[%emt 0:02:43]} Bf8 {[%emt 0:00:59]} 25. Qd5 {[%emt 0:03:00]} b5 $18 {[%emt 0:01:23]} 26. Rg3 {[%emt 0:04:24]} Bg7 {[%emt 0:00:49]} 27. Rd1 {[%emt 0:02:50]} Nb7 {[%emt 0:00:32]} 28. c4 {[%emt 0:05:12]} Nb6 {[%emt 0:00:29]} 29. Qd2 {[%emt 0:00:35]} bxc4 {[%emt 0:00:22]} 30. Bxd6 {[%emt 0:01:11]} Qc6 {[%emt 0:00:40]} 31. Qb4 {[%emt 0:00:55]} a5 {[%emt 0:00:26]} 32. Qe1 {[%emt 0:00:38]} Nxd6 {[%emt 0:00:12]} 33. Rh3 {[%emt 0:00:28]} Bf8 {[%emt 0:00:51]} 34. Qh4 {[%emt 0:00:00]} Nxf5 {[%emt 0:00:09]} 35. Qh5 {[%emt 0:00:24]} Rxd1+ {[%emt 0:00:08]} 36. Bxd1 {[%emt 0:00:01]} Qxe4 {[%emt 0:00:49]} 37. Be2 {[%emt 0:01:24]} Qb1+ {[%emt 0:00:47]} 38. Bd1 {[%emt 0:00:03]} Rd7 {[%emt 0:00:08]} 0-1

[Event "Coimbra Queima Fitas Open 2024"]
[Site "Coimbra"]
[Date "2024.04.27"]
[Round "4.18"]
[White "Ferreira, Vasco Capitao Mendes"]
[Black "Monteiro, Paulo Alexandre Gome"]
[Result "0-1"]
[ECO "B40"]
[WhiteElo "1802"]
[BlackElo "2122"]
[Annotator "NA RC"]
[PlyCount "73"]
[EventDate "2024.04.23"]
[EventType "swiss"]
[EventCountry "POR"]
[SourceTitle "playchess.com"]
[Source "ChessBase"]
[SourceQuality "1"]
[TimeControl "5400+30"]

1. e4 {[%emt 0:00:02]} c5 {[%emt 0:00:12]} 2. Nf3 {[%emt 0:00:26]} e6 {[%emt 0:00:21]} 3. d4 {[%emt 0:00:15]} cxd4 {[%emt 0:00:07]} 4. Nxd4 {[%emt 0:00:08]} d6 {[%emt 0:01:21]} 5. Nc3 {[%emt 0:03:05]} a6 {[%emt 0:00:26]} 6. f4 {[%emt 0:08:13]} Nd7 {[%emt 0:04:51]} 7. Be3 {[%emt 0:04:26]} Ngf6 {[%emt 0:05:02]} 8. Qf3 {[%emt 0:06:06]} Qc7 {[%emt 0:08:14]} (8... e5 $11) 9. O-O-O {[%emt 0:08:06] B82: Sicilian Scheveningen: 6 f4.} (9. g4 $14) 9... b5 {[%emt 0:09:06]} 10. Bd3 {[%emt 0:05:12]} (10. a3 $11) 10... Bb7 {[%emt 0:02:09]} (10... b4 $15 11. Na4 Bb7) 11. g4 {[%emt 0:06:46]} b4 {[%emt 0:10:16]} 12. Nce2 {[%emt 0:00:56]} Nc5 {[%emt 0:00:35]} 13. Ng3 {[%emt 0:00:50]} Rc8 {[%emt 0:13:27]} (13... h5 $15 14. gxh5 Nxd3+ 15. Rxd3 Rc8) 14. Kb1 {[%emt 0:07:45]} Be7 {[%emt 0:08:09]} 15. h4 {[%emt 0:08:04]} (15. g5 $14 Nfd7 16. h4) 15... O-O {[%emt 0:02:46]} (15... d5 $1 $11 16. e5 Nfe4) 16. g5 {[%emt 0:07:20]} Nfd7 {[%emt 0:00:10]} 17. Ndf5 {[%emt 0:08:04]} exf5 {[%emt 0:02:59]} 18. Nxf5 {[%emt 0:00:03]} Rfe8 {[%emt 0:17:01]} 19. Nh6+ $2 {[%emt 0:07:44]} (19. Rhg1) 19... gxh6 {[%emt 0:05:22]} 20. gxh6 {[%emt 0:00:05]} Bf6 {[%emt 0:01:10]} 21. Qg3+ {[%emt 0:03:52]} Kf8 {[%emt 0:02:55]} 22. Bd4 {[%emt 0:07:18]} Bxd4 {[%emt 0:01:41]} 23. e5 $19 {[%emt 0:00:05]} Nxd3 {[%emt 0:02:59]} 24. Qg7+ {[%emt 0:02:10]} Ke7 {[%emt 0:00:06]} 25. Qg5+ {[%emt 0:00:18]} Ke6 {[%emt 0:00:24]} 26. Qg4+ {[%emt 0:01:15]} Kd5 {[%emt 0:00:43]} 27. Qf3+ {[%emt 0:01:28]} Kc5 {[%emt 0:00:14]} 28. Qxd3 {[%emt 0:02:03]} dxe5 {[%emt 0:00:48]} 29. c3 {[%emt 0:02:06]} bxc3 {[%emt 0:00:41]} 30. bxc3 {[%emt 0:00:34]} Qb6+ {[%emt 0:00:38]} 31. Ka1 {[%emt 0:00:24]} Kc6 {[%emt 0:00:31]} 32. Rb1 {[%emt 0:00:45]} Qc5 {[%emt 0:00:23]} 33. Qe4+ Kd6 {[%emt 0:00:34]} 34. fxe5+ {[%emt 0:01:01]} Rxe5 {[%emt 0:00:25]} 35. Qxd4+ {[%emt 0:00:33]} Qxd4 {[%emt 0:00:06]} 36. cxd4 {[%emt 0:00:01]} Rb5 {[%emt 0:00:22]} 37. Rxb5 {[%emt 0:00:35]} 0-1

[Event "Coimbra Queima Fitas Open 2024"]
[Site "Coimbra"]
[Date "2024.04.27"]
[Round "5.1"]
[White "Martin Duque, Jesus"]
[Black "Gama, Edivaldo Pereira Da"]
[Result "1/2-1/2"]
[ECO "B38"]
[WhiteElo "2336"]
[BlackElo "2109"]
[Annotator "TA"]
[PlyCount "46"]
[EventDate "2024.04.23"]
[EventType "swiss"]
[EventCountry "POR"]
[SourceTitle "playchess.com"]
[Source "ChessBase"]
[SourceQuality "1"]
[TimeControl "5400+30"]

{[%evp 21,46,28,35,33,41,43,66,45,57,30,58,21,6,-4,0,0,57,52,52,52,71,-97,0,0,0,-27,-29]} 1. e4 g6 2. d4 c5 3. Nf3 Bg7 4. c4 cxd4 5. Nxd4 Nc6 6. Be3 Nf6 7. Nc3 d6 8. Be2 O-O 9. O-O Bd7 10. h3 Nxd4 11. Bxd4 Bc6 12. Qc2 a6 13. b4 Rc8 14. Rad1 {White is more active. White is slightly better.} Qc7 {[%cal Ob7b5]} 15. a4 b5 16. axb5 (16. cxb5 $5 axb5 17. axb5 Bxe4 18. Qb3 $11) 16... axb5 17. c5 ({Don't take} 17. cxb5 Bxe4 18. Qb3 Bb7 $14) 17... Qb7 (17... dxc5 {is interesting.} 18. bxc5 Rfd8 19. Bxb5 Ng4) 18. Bf3 Rfd8 (18... dxc5 $1 $11 19. Bxc5 Rfd8) 19. cxd6 $14 Rxd6 {[%cal Of6e4]} 20. e5 {[%csl LRd6,LRf6]} Bxf3 21. exd6 {[#]} (21. gxf3 $16 {is forced if you want to stay better.} Rxd4 22. Rxd4) 21... Bxd1 (21... Bxg2 $17 22. Qd3 Bxf1 23. Qxf1 exd6 24. Qxb5 Qxb5 25. Nxb5 Rc4) 22. Rxd1 $11 exd6 23. Qd3 Rc4 {Weighted Error Value: White=0.29 (precise) /Black=0.27 (precise) .  Mistake:       	White=1     	Black=2      Inaccurate:     	White=3     	Black=1      OK:         	White=1     	Black=3      Best:        	White=1     	Black=1} 1/2-1/2